bitfinex/quotes_ETHUSD_20241122
["timestamp","ask_amount","ask_price","bid_price","bid_amount"]
[1732285822499,3.0386,3291.0,3289.8,0.3033]
[1732285822699,3.03841,3291.2,3289.8,0.3033]
[1732285822992,0.7643,3291.8,3289.9,0.3033]
[1732285823211,3.0385,3291.1,3289.9,0.3033]
[1732285823694,3.03858,3291.1,3289.9,0.3033]
[1732285823892,0.8289,3291.6,3289.6,0.3033]
[1732285823893,3.03884,3290.8,3289.6,0.3033]
[1732285824198,3.03852,3291.1,3289.8,0.3033]
[1732285824415,3.03868,3290.9,3289.8,0.3033]
[1732285824558,3.03868,3290.9,3288.5,0.68072466]
[1732285824559,3.03859,3291.0,3289.2,0.3033]
[1732285824895,3.03939,3290.2,3289.2,0.3033]
[1732285825060,3.03948,3290.1,3288.6,0.3033]
[1732285825261,3.03953,3290.0,3288.6,0.3033]
[1732285825472,3.03961,3289.9,3288.5,0.68072466]
[1732285825672,0.303933,3290.1,3288.6,0.49086521]
[1732285825958,0.7864,3290.6,3288.6,0.49086521]
[1732285826164,0.7864,3290.6,3288.6,0.4604606]
[1732285826165,3.03931,3290.3,3288.6,0.4604606]
[1732285826461,0.303931,3290.2,3288.6,0.49086065]
[1732285826669,3.03933,3290.2,3288.7,0.55]
[1732285826895,0.8036,3290.0,3288.5,0.68072466]
[1732285827208,3.03928,3290.3,3278.7,15.63419244]
[1732285827209,3.04073,3288.7,3287.4,3.9238813]
[1732285827372,3.04077,3288.7,3286.9,3.9238813]
[1732285827574,0.8215,3289.1,3287.0,0.39238813]
[1732285827575,3.04114,3288.3,3287.0,0.39238813]
[1732285827784,0.8215,3289.1,3287.0,0.39238813]
[1732285827994,3.04129,3288.1,3286.4,3.9238813]
[1732285828304,0.78,3288.6,3286.4,3.9238813]
[1732285828499,3.04145,3288.0,3286.5,0.39238813]
[1732285828815,0.55,3288.5,3286.5,0.39238813]
[1732285828816,3.0416,3287.8,3286.5,0.39238813]
[1732285828993,3.0416,3287.8,3285.3,0.01]
[1732285828994,3.04194,3287.4,3285.4,3.9238813]
[1732285829161,3.04182,3287.5,3285.5,0.03042847]
[1732285829497,3.346102,3287.4,3285.5,0.03042847]
[1732285829807,3.04145,3288.0,3285.9,3.9238813]
[1732285829972,3.042,3287.4,3286.0,0.39238813]
[1732285830181,3.04127,3288.1,3286.1,0.03042767]
[1732285830390,0.386787,3288.0,3285.7,0.03042767]
[1732285830556,3.04145,3287.9,3285.7,0.03042767]
[1732285830760,0.3428237,3287.8,3285.7,0.03042767]
[1732285830962,0.386787,3288.0,3286.5,3.0]
[1732285831311,3.04031,3289.2,3286.5,3.0]
[1732285831312,3.04053,3288.9,3286.6,0.58041939]
[1732285831460,0.8113,3289.0,3286.8,0.55]
[1732285831461,3.04062,3288.8,3286.8,0.55]
[1732285831661,3.04062,3288.8,3286.8,0.58041714]
[1732285832062,0.304062,3288.7,3286.8,0.58041714]
[1732285832286,3.85176,3289.0,3286.8,0.58041714]
[1732285834034,3.04071,3288.7,3285.9,3.9238813]
[1732285834182,3.9238813,3288.8,3286.0,3.03042341]
[1732285834383,0.385176,3288.9,3286.5,3.0]
[1732285834619,3.04054,3288.9,3286.6,0.03041802]
[1732285834823,0.39238813,3289.2,3287.0,3.0]
[1732285835023,0.39238813,3289.2,3286.6,0.03041802]
[1732285835024,0.7685,3289.8,3287.5,3.0]
[1732285835229,2.79,3290.1,3288.0,3.0]
[1732285835382,0.64499428,3290.0,3288.1,0.55]
[1732285835586,0.64499428,3290.0,3287.7,0.55]
[1732285835799,0.7685,3290.6,3287.5,3.0]
[1732285835800,0.7685,3290.6,3288.0,0.55]
[1732285836010,3.03949,3290.1,3288.0,3.55]
[1732285836195,3.343519,3290.0,3288.2,0.55]
[1732285836405,3.03931,3290.3,3288.3,0.0304065]
[1732285836942,3.0397,3289.8,3288.2,0.55]
[1732285837099,3.03979,3289.7,3288.2,0.55]
[1732285837298,3.03999,3289.5,3287.4,3.9238813]
[1732285837648,1.072479,3289.6,3287.5,3.55]
[1732285837847,3.04064,3288.8,3286.9,3.9238813]
[1732285837993,3.04064,3288.8,3287.0,0.39238813]
[1732285838695,0.55,3289.5,3287.0,0.39238813]
[1732285838891,0.55,3289.5,3287.0,0.42280615]
[1732285839116,0.55,3289.5,3287.1,0.43466875]
[1732285839117,3.04051,3289.0,3287.1,0.43466875]
[1732285839317,3.04026,3289.2,3287.2,0.03041669]
[1732285839526,0.43185,3289.4,3287.2,0.03041669]
[1732285839527,3.47194,3289.4,3287.4,3.9238813]
[1732285839737,3.04031,3289.2,3287.5,0.42279859]
[1732285839937,3.0405,3289.0,3287.0,0.03041366]
[1732285840231,3.04059,3288.9,3287.0,3.39238813]
[1732285840434,0.304059,3288.8,3287.2,0.3033]
[1732285840594,3.344679,3288.8,3287.2,0.3033]
[1732285840800,3.04043,3289.1,3287.2,0.3033]
[1732285841029,3.04059,3288.9,3287.2,0.3033]
[1732285841240,3.04064,3288.8,3287.3,0.55]
[1732285841411,3.04044,3289.0,3287.4,0.03041504]
[1732285841723,3.04044,3289.0,3287.4,3.0]
[1732285841724,3.04054,3288.9,3287.4,3.0]
[1732285841898,0.608098,3288.8,3287.5,0.355]
[1732285842112,3.04054,3288.9,3287.5,0.355]
[1732285842300,3.04063,3288.8,3287.5,0.355]
[1732285842701,3.04063,3288.8,3287.3,0.55]
[1732285843005,3.04054,3288.9,3286.9,0.3033]
[1732285843006,3.04109,3288.3,3286.9,0.3033]
[1732285843202,3.04116,3288.3,3286.5,0.03041984]
[1732285843432,3.04116,3288.3,3285.6,0.68125627]
[1732285843433,3.04177,3287.6,3285.7,0.03041984]
[1732285843600,3.04175,3287.6,3285.7,0.03042509]
[1732285843806,0.304175,3287.5,3285.7,0.03042509]
[1732285844118,3.304109,3288.2,3286.0,0.3033]
[1732285844119,3.345309,3288.2,3286.0,0.3033]
[1732285844433,0.8309,3289.0,3286.4,4.2271813]
[1732285844645,0.8309,3289.0,3286.1,0.45313871]
[1732285844646,3.0,3288.7,3286.9,3.9238813]
[1732285844798,3.0,3288.7,3287.1,0.3033]
[1732285844999,6.04073,3288.7,3287.1,0.3033]
[1732285845210,3.0,3288.7,3287.1,0.3033]
[1732285845415,3.0,3288.7,3287.0,3.0]
[1732285845416,0.7615,3289.8,3287.5,3.0]
[1732285845634,3.03979,3289.7,3287.9,0.55]
[1732285845844,0.7615,3289.8,3287.9,0.55]
[1732285845845,3.04034,3289.1,3287.9,0.55]
[1732285846001,3.04035,3289.1,3287.5,3.0]
[1732285846202,0.7615,3290.2,3280.4,8.15826184]
[1732285846203,3.04054,3288.9,3287.3,0.55]
[1732285846422,3.04054,3288.9,3287.0,3.0]
[1732285846423,3.04078,3288.7,3287.1,0.55]
[1732285846642,0.304054,3288.8,3287.1,0.55]
[1732285846939,0.3344594,3288.7,3287.0,3.0]
[1732285847116,3.04094,3288.5,3286.5,3.55]
[1732285847435,3.3751894,3288.7,3286.9,3.9238813]
[1732285847638,0.3344594,3288.7,3287.0,3.55]
[1732285847859,3.04086,3288.6,3287.1,0.74738813]
[1732285848538,3.79816,3289.3,3287.5,0.0016]
[1732285848539,6.04071,3288.7,3287.5,0.0016]
[1732285848855,3.79816,3289.3,3287.5,0.0016]
[1732285848856,0.604071,3288.6,3287.5,0.0016]
[1732285849055,3.0,3288.8,3287.5,0.0016]
[1732285849359,3.04115,3288.3,3287.5,0.0016]
[1732285849546,3.0,3288.8,3287.5,0.0016]
[1732285849753,3.644767,3288.7,3287.5,0.0016]
[1732285850061,3.0,3289.2,3287.5,0.0016]
[1732285850266,3.04037,3289.1,3287.5,0.0016]
[1732285850423,0.304037,3289.0,3287.5,0.0016]
[1732285850627,4.40139,3289.7,3287.5,0.0016]
[1732285850824,3.04048,3289.0,3287.5,0.0016]
[1732285851065,3.344588,3288.9,3287.5,0.0016]
[1732285851243,3.04109,3288.3,3287.5,0.0016]
[1732285851442,3.04088,3288.6,3287.5,0.0016]
[1732285851631,0.304088,3288.5,3287.5,0.0016]
[1732285851958,3.04111,3288.3,3287.5,0.0016]
[1732285852333,3.04109,3288.3,3287.5,0.0016]
[1732285852868,3.04124,3288.2,3287.5,0.0016]
[1732285853038,3.04148,3287.9,3287.5,0.0016]
[1732285853223,0.304148,3287.8,3287.5,0.0016]
[1732285853663,3.04124,3288.2,3287.5,0.0016]
[1732285854034,3.04093,3288.5,3287.5,0.0016]
[1732285854467,3.04101,3288.4,3287.5,0.0016]
[1732285854769,3.04147,3287.9,3287.5,0.0016]
[1732285855283,3.04155,3287.8,3287.5,0.0016]
[1732285855485,3.04118,3288.2,3287.5,0.0016]
[1732285855656,3.04156,3287.8,3287.5,0.0016]
[1732285855985,3.0417,3287.7,3287.5,0.0016]
[1732285856146,3.04114,3288.3,3287.5,0.0016]
[1732285856349,0.304114,3288.2,3287.5,0.0016]
[1732285856664,3.04173,3287.6,3287.5,0.0016]
[1732285856858,3.04161,3287.8,3287.5,0.0016]
[1732285857179,3.04173,3287.6,3287.5,0.0016]
[1732285857394,0.608334,3287.6,3287.5,0.0016]
[1732285857547,3.04173,3287.6,3287.5,0.0016]
[1732285857749,3.04161,3287.8,3287.5,0.0016]
[1732285857750,3.04169,3287.7,3287.5,0.0016]
[1732285857951,3.04173,3287.6,3287.5,0.0016]
[1732285858570,6.04173,3287.6,3287.5,0.0016]
[1732285858870,7.707272,3287.6,3287.5,0.0016]
[1732285860085,6.950072,3287.6,3287.5,0.0016]
[1732285860858,8.287472,3287.6,3287.5,0.0016]
[1732285861057,5.245742,3287.6,3284.9,0.03043198]
[1732285861273,3.04291,3286.4,3284.6,0.68144127]
[1732285861570,0.55,3287.1,3284.6,0.68144127]
[1732285861571,0.7874,3286.7,3284.6,0.68144127]
[1732285861884,3.04308,3286.2,3284.6,0.68144127]
[1732285862086,3.0434,3285.8,3284.6,0.68144127]
[1732285862291,3.0434,3285.8,3283.9,3.9238813]
[1732285862292,3.0,3286.3,3283.9,3.95432338]
[1732285862451,3.04342,3285.8,3284.0,0.39238813]
[1732285862649,3.04342,3285.8,3283.5,0.03044333]
[1732285862878,3.34737,3286.2,3283.5,0.03044333]
[1732285863234,4.02712513,3286.1,3283.6,0.42576246]
[1732285863439,3.0,3285.7,3283.6,0.45620592]
[1732285863591,3.04405,3285.1,3283.6,0.45620592]
[1732285863911,0.304405,3285.0,3282.6,0.0304474]
[1732285864209,3.04451,3284.6,3282.6,0.0304474]
[1732285864383,3.04471,3284.4,3282.6,0.0304474]
[1732285864710,3.04469,3284.4,3282.4,0.03045408]
[1732285864927,0.7874,3284.0,3281.9,0.0304596]
[1732285865106,3.04571,3283.4,3281.8,0.03046216]
[1732285865305,3.04578,3283.3,3281.7,0.1480547]
[1732285865475,0.304571,3283.3,3281.7,0.1480547]
[1732285865676,3.0,3283.7,3281.7,0.1480547]
[1732285865986,3.0,3284.4,3282.3,3.9238813]
[1732285866190,3.04433,3284.8,3282.8,3.9238813]
[1732285866387,3.04414,3285.0,3282.9,2.9]
[1732285866598,3.9238813,3285.2,3282.3,3.9238813]
[1732285866599,3.0451,3284.0,3282.3,3.9238813]
[1732285866783,0.7874,3284.0,3281.3,3.9238813]
[1732285866983,0.30451,3283.9,3281.8,0.03046661]
[1732285867187,3.04525,3283.8,3281.3,3.9238813]
[1732285867387,3.04625,3282.8,3281.3,3.9238813]
[1732285867622,3.04664,3282.3,3280.3,3.9238813]
[1732285867926,0.8161,3283.1,3280.3,3.9238813]
[1732285867927,3.04694,3282.0,3280.3,3.9238813]
[1732285868131,3.0,3282.1,3279.8,3.9238813]
[1732285868314,3.04684,3282.1,3280.3,3.9238813]
[1732285868516,3.04666,3282.3,3280.3,3.9238813]
[1732285868688,3.0,3282.3,3280.3,3.9238813]
[1732285868883,3.04697,3282.0,3279.8,3.9238813]
[1732285869101,3.0471,3281.8,3279.1,3.95436124]
[1732285869290,3.0,3281.3,3278.4,0.1480547]
[1732285869515,4.62097943,3281.7,3278.7,3.9338813]
[1732285869696,0.7577,3282.4,3279.8,3.9238813]
[1732285869896,0.7577,3282.4,3279.3,0.01]
[1732285869897,0.7577,3283.4,3280.8,3.9238813]
[1732285870129,0.7577,3283.4,3280.9,0.0304706]
[1732285870622,0.8284,3284.0,3281.4,3.0]
[1732285870798,0.8284,3284.0,3281.5,0.58046407]
[1732285871002,3.04526,3283.8,3281.5,0.58046407]
[1732285871207,3.04525,3283.8,3281.5,0.58046407]
[1732285871535,4.5329213,3283.7,3281.7,0.55]
[1732285871693,3.04581,3283.2,3281.7,0.55]
[1732285871888,3.04582,3283.2,3281.1,0.03046824]
[1732285872195,3.04582,3283.2,3281.2,0.55]
[1732285872196,3.04602,3283.0,3281.2,0.55]
[1732285872399,0.304582,3283.1,3280.5,0.03047212]
[1732285872583,3.9238813,3283.2,3280.5,0.39543534]
[1732285872584,3.04636,3282.6,3280.5,0.39543534]
[1732285872788,0.42284633,3283.0,3280.8,3.9238813]
[1732285873007,0.42284633,3283.0,3280.6,0.03047646]
[1732285873008,0.42284633,3283.0,3280.9,0.39238813]
[1732285873221,0.42284633,3283.0,3280.3,3.9238813]
[1732285873222,0.42284633,3283.0,3281.0,0.0304732]
[1732285873423,0.7877,3283.4,3274.1,0.15809973]
[1732285873424,3.9238813,3283.7,3280.8,3.9238813]
[1732285873586,0.7521,3284.0,3281.3,3.9238813]
[1732285873785,3.04526,3283.8,3281.4,3.58046333]
[1732285873986,0.304526,3283.7,3281.5,0.75043446]
[1732285874292,6.9688413,3284.2,3281.6,0.58046331]
[1732285874293,3.9238813,3284.2,3281.6,0.58046331]
[1732285874625,0.875,3284.8,3281.6,0.58046331]
[1732285874626,0.875,3284.8,3282.3,3.9238813]
[1732285874788,1.216189,3285.0,3282.8,3.9238813]
[1732285875131,3.79613,3285.2,3282.8,3.9238813]
[1732285875132,0.7521,3285.2,3282.9,0.97284071]
[1732285875290,1.216002,3285.5,3282.9,0.97284071]
[1732285875490,3.04378,3285.4,3283.1,0.55]
[1732285875821,0.39238813,3285.6,3283.1,0.58044839]
[1732285876032,5.1398143,3285.7,3283.1,0.58044839]
[1732285876209,3.04395,3285.3,3283.1,0.58044839]
[1732285876527,3.04434,3284.8,3283.1,0.55]
[1732285876699,3.04416,3285.0,3283.2,0.03045273]
[1732285877027,3.04374,3285.5,3283.2,0.03045217]
[1732285877224,3.52898144,3285.5,3283.2,0.03045217]
[1732285877434,3.04387,3285.3,3283.2,0.03045217]
[1732285877727,3.52893144,3285.5,3283.4,3.55]
[1732285877970,0.48524144,3285.5,3283.4,0.55]
[1732285878142,3.9238813,3285.2,3282.4,3.0]
[1732285878350,3.04448,3284.7,3282.5,0.03045621]
[1732285878581,3.04495,3284.2,3281.8,3.9238813]
[1732285878869,3.04495,3284.2,3272.6,15.483899]
[1732285878870,3.0,3284.1,3281.6,0.03045889]
[1732285879071,3.0,3284.1,3281.4,0.03046467]
[1732285879072,3.304495,3284.1,3281.4,0.03046467]
[1732285880055,0.304495,3284.1,3281.4,0.03046467]
[1732285880262,3.04532,3283.8,3281.5,0.3954346]
[1732285880482,0.7757,3283.9,3281.6,0.03046481]
[1732285880772,3.04586,3283.2,3280.7,3.9238813]
[1732285880973,3.04586,3283.2,3280.8,0.42285684]
[1732285880974,3.04608,3282.9,3280.8,0.42285684]
[1732285881183,3.9238813,3283.7,3281.2,3.9238813]
[1732285881184,3.04543,3283.6,3281.2,3.9238813]
[1732285881338,3.04517,3283.9,3281.3,0.03046656]
[1732285881556,3.04515,3284.0,3281.4,0.39543479]
[1732285881761,6.04467,3284.5,3281.7,3.9238813]
[1732285881958,3.04442,3284.7,3282.2,3.9238813]
[1732285882289,0.304442,3284.6,3282.3,0.42284229]
[1732285882453,3.04452,3284.6,3282.3,3.42284229]
[1732285882660,4.80040607,3285.7,3282.8,0.55]
[1732285882967,3.04351,3285.7,3283.3,0.55]
[1732285883307,3.04331,3285.9,3283.4,0.03044652]
[1732285883460,1.215775,3286.1,3284.2,3.9238813]
[1732285883461,0.67845813,3286.1,3284.2,3.9238813]
[1732285883659,3.04238,3286.9,3284.3,3.58044004]
[1732285883997,3.04312,3286.1,3284.3,0.55]
[1732285884211,3.9238813,3286.2,3284.3,0.55]
[1732285884361,3.04338,3285.9,3284.3,0.55]
[1732285884562,3.9238813,3286.2,3284.3,0.55]
[1732285884881,3.9238813,3286.2,3281.1,1.42554914]
[1732285884882,3.04533,3283.8,3281.2,3.95432537]
[1732285885088,3.04488,3284.2,3281.3,0.39543254]
[1732285885379,6.9685913,3284.4,3281.3,0.39543254]
[1732285885380,3.0,3284.3,3281.4,0.03046463]
[1732285885589,3.04516,3283.9,3281.4,0.46544042]
[1732285885787,3.04526,3283.8,3281.4,0.46544042]
[1732285885989,3.59497,3284.1,3281.4,0.46544042]
[1732285885990,0.304526,3283.7,3281.4,0.46544042]
[1732285886162,3.04598,3283.1,3281.4,0.03046463]
[1732285886365,3.0,3283.2,3280.8,0.03046717]
[1732285886595,3.0,3283.6,3281.2,3.9238813]
[1732285886895,0.3,3283.6,3281.7,3.9238813]
[1732285887098,0.3,3283.6,3281.3,0.03046267]
[1732285887099,3.04552,3283.6,3281.3,0.03046054]
[1732285887312,3.0,3284.1,3281.3,0.03046054]
[1732285887313,3.04563,3283.4,3281.3,0.03046054]
[1732285887602,3.350313,3283.3,3281.4,0.39543418]
[1732285887798,3.04597,3283.1,3281.5,0.03046496]
[1732285888110,3.04581,3283.2,3281.5,0.03046496]
[1732285888257,3.350551,3283.1,3281.4,0.39543418]
[1732285888583,3.04572,3283.3,3281.5,0.03046719]
[1732285888758,3.0,3283.7,3281.5,0.03046719]
[1732285888959,0.604525,3283.6,3281.5,0.03046719]
[1732285889161,3.04569,3283.4,3281.5,0.03046719]
[1732285889587,3.04533,3283.8,3281.8,0.55]
[1732285889909,3.04552,3283.6,3281.9,0.03046154]
[1732285890113,3.04566,3283.4,3281.5,0.03046532]
[1732285890269,0.3,3283.7,3281.5,0.03046532]
[1732285890603,3.04553,3283.5,3281.5,0.03046532]
[1732285891179,3.0458,3283.3,3281.5,0.03046532]
[1732285891389,3.34536,3283.7,3281.5,0.58046532]
[1732285891689,0.334536,3283.6,3281.5,0.58046532]
[1732285891893,3.04507,3284.0,3281.8,0.55]
[1732285891894,3.04526,3283.8,3281.8,0.55]
[1732285892066,3.9238813,3284.4,3281.9,0.03046151]
[1732285892268,3.9238813,3284.4,3280.7,0.01]
[1732285892269,3.04596,3283.1,3280.7,3.9238813]
[1732285892502,3.04596,3283.1,3280.8,0.03046848]
[1732285892671,3.9238813,3283.4,3280.8,0.03046848]
[1732285892869,3.04623,3282.8,3280.9,0.39543498]
[1732285893105,0.55,3283.4,3281.0,0.03047112]
[1732285893274,3.55,3283.4,3281.0,0.03047112]
[1732285893484,2.99815,3283.1,3281.0,0.03047112]
[1732285893822,3.04555,3283.5,3281.2,3.9238813]
[1732285894105,0.7694,3284.1,3281.3,3.58046417]
[1732285894305,3.04557,3283.5,3281.3,3.9728523]
[1732285894509,3.04571,3283.4,3281.3,3.9728523]
[1732285894807,3.04599,3283.0,3281.3,3.9728523]
[1732285894988,3.04578,3283.3,3281.4,0.78967336]
[1732285895197,3.04567,3283.4,3281.4,0.78967336]
[1732285895400,3.59545,3283.6,3281.5,0.55]
[1732285895615,3.0,3283.5,3281.6,0.03046695]
[1732285895811,3.0,3283.3,3281.6,0.03046695]
[1732285895969,3.43620512,3283.5,3281.5,0.03046685]
[1732285896312,0.70316551,3283.4,3281.5,0.03046685]
[1732285896616,6.04563,3283.4,3281.5,0.03046685]
[1732285897021,3.9238813,3284.4,3281.8,3.55]
[1732285897185,3.9238813,3284.4,3281.9,0.03046193]
[1732285897385,3.04513,3284.0,3281.9,0.03046193]
[1732285897598,3.04528,3283.8,3281.9,0.03046193]
[1732285897800,0.609044,3283.7,3282.1,0.55]
[1732285898012,3.04516,3283.9,3282.2,0.03046192]
[1732285898207,3.04517,3283.9,3282.2,0.03046192]
[1732285898895,3.04517,3283.9,3282.1,0.55]
[1732285898896,3.04525,3283.8,3282.1,0.55]
[1732285899097,3.04536,3283.7,3282.1,0.55]
[1732285899281,3.349787,3283.8,3281.5,0.03046191]
[1732285899487,3.9238813,3283.9,3281.5,0.58046191]
[1732285899825,3.04601,3283.0,3281.4,0.72285256]
[1732285899980,3.04602,3283.0,3280.8,0.03046845]
[1732285900413,3.350752,3282.9,3280.9,0.39543498]
[1732285900618,6.09186,3283.1,3281.0,0.03047051]
[1732285900783,0.609186,3283.0,3281.0,0.03047051]
[1732285900982,3.04562,3283.4,3281.2,3.9238813]
[1732285901219,3.04587,3283.2,3281.3,3.42285317]
[1732285901828,3.9238813,3283.4,3281.3,0.39238813]
[1732285902012,3.04597,3283.1,3280.9,0.58047051]
[1732285902317,6.396062,3283.3,3280.9,0.58047051]
[1732285902490,1.03199433,3283.2,3281.1,0.55]
[1732285902926,3.04627,3282.7,3281.1,0.55]
[1732285903138,1.86329433,3283.2,3280.3,0.03047106]
[1732285903429,3.04627,3282.7,3280.3,0.39238813]
[1732285903626,3.04674,3282.2,3279.8,0.03047745]
[1732285903796,3.04665,3282.3,3279.8,0.03047745]
[1732285904120,0.304665,3282.2,3279.9,0.39543588]
[1732285904331,3.0,3281.8,3280.0,0.03047716]
[1732285904619,3.04745,3281.5,3279.2,0.03047857]
[1732285904793,3.0,3281.8,3279.2,0.03047857]
[1732285904794,0.69238813,3281.7,3279.2,0.03047857]
[1732285904998,0.67394881,3281.6,3279.6,3.9238813]
[1732285905229,4.3535,3282.8,3279.7,0.03047903]
[1732285905385,3.04698,3282.0,3279.8,0.39543603]
[1732285905582,6.9704413,3282.4,3279.9,0.03047747]
[1732285905786,3.04711,3281.8,3279.9,0.03047747]
[1732285906031,3.04692,3282.0,3279.9,0.03047747]
[1732285906534,3.04702,3281.9,3279.9,0.03047747]
[1732285906829,3.04667,3282.3,3279.9,0.03047747]
[1732285906984,0.69238813,3282.2,3280.2,0.55]
[1732285907194,3.04636,3282.6,3280.3,0.03047354]
[1732285907440,0.304636,3282.5,3280.5,0.55]
[1732285907583,3.84976,3282.8,3280.6,0.03047154]
[1732285908121,0.8035,3282.8,3280.6,0.03047154]
[1732285908326,0.47273813,3282.7,3280.6,0.03047154]
[1732285908822,3.04703,3281.9,3280.4,0.35804735]
[1732285909012,3.04703,3281.9,3279.9,0.03047809]
[1732285909183,3.04703,3281.9,3279.7,0.03047884]
[1732285909184,3.04728,3281.7,3279.7,0.03047884]
[1732285909383,3.04742,3281.5,3279.2,0.03048162]
[1732285910118,3.04724,3281.7,3279.2,0.03048162]
[1732285910431,0.3351903,3281.6,3279.3,0.39543629]
[1732285910581,0.3351903,3281.6,3279.4,0.58048302]
[1732285911088,3.04739,3281.5,3279.4,0.58048302]
[1732285911286,3.3825103,3281.6,3279.4,0.58048302]
[1732285911520,0.33824303,3281.5,3279.4,0.58048302]
[1732285911731,0.304703,3281.8,3279.4,0.58048302]
[1732285912031,0.304703,3281.8,3279.7,3.55]
[1732285912235,3.04725,3281.7,3279.8,0.03047904]
[1732285912408,3.04739,3281.5,3279.8,0.03047904]
[1732285912616,3.04725,3281.7,3279.8,0.03047904]
[1732285912825,3.04757,3281.3,3279.8,0.03047904]
[1732285913132,3.04739,3281.5,3279.4,0.58048202]
[1732285913301,0.03810252,3281.2,3279.3,0.55]
[1732285913506,0.03810252,3281.2,3279.4,0.03048303]
[1732285914330,3.04769,3281.2,3279.2,0.26591831]
[1732285914645,3.04831,3280.6,3278.8,0.0304849]
[1732285914800,0.03811217,3280.5,3278.8,0.0304849]
[1732285914998,3.04852,3280.3,3278.8,0.0304849]
[1732285915202,3.08678412,3280.2,3278.3,0.03049129]
[1732285915435,3.08678412,3280.2,3278.5,0.03049417]
[1732285915603,0.30867841,3280.1,3278.5,0.03049417]
[1732285915803,0.03811771,3280.3,3278.5,0.03049417]
[1732285916243,0.03811771,3280.3,3277.8,0.03049415]
[1732285916535,3.08665771,3280.3,3277.8,0.03049415]
[1732285916736,0.03811771,3280.3,3278.5,0.03049565]
[1732285916944,0.03811483,3280.2,3278.5,0.03049565]
[1732285917442,3.08679483,3280.2,3278.4,0.17854813]
[1732285918001,0.03811876,3280.3,3278.5,0.55]
[1732285918240,3.08662876,3280.3,3278.5,0.31785481]
[1732285918447,3.08664876,3280.3,3278.7,3.0]
[1732285918605,0.30866288,3280.2,3278.8,0.3]
[1732285918806,0.03811863,3280.1,3278.4,0.1785496]
[1732285919138,0.03811861,3280.2,3278.5,0.55]
[1732285919340,0.03811861,3280.2,3278.6,0.03049324]
[1732285919637,0.55227327,3280.5,3278.6,0.03049324]
[1732285919799,0.03811654,3280.5,3278.7,0.35804932]
[1732285920004,3.08650654,3280.5,3278.8,0.03049129]
[1732285920235,0.03811654,3280.5,3278.8,0.03049129]
[1732285920445,0.8062,3281.1,3279.1,0.55]
[1732285920743,0.03810786,3281.2,3279.4,3.55]
[1732285920947,0.7976,3282.1,3279.4,3.55]
[1732285920948,0.03810467,3281.9,3279.9,3.55]
[1732285921242,0.03809632,3282.2,3280.0,0.03047706]
[1732285921656,3.04719,3281.8,3280.0,0.03047706]
[1732285921939,1.21703,3282.3,3280.2,0.55]
[1732285922255,0.201463,3282.3,3280.4,0.55]
[1732285922543,0.0380939,3282.3,3280.5,0.03047202]
[1732285922740,6.27578144,3283.6,3280.7,3.55]
[1732285922741,0.03809003,3283.0,3280.7,3.55]
[1732285923045,0.03808476,3283.2,3281.1,3.55]
[1732285923342,6.9698513,3283.1,3281.2,0.03046626]
[1732285923558,0.03808503,3283.0,3280.8,0.03046802]
[1732285923707,0.8235,3283.3,3280.9,3.0]
[1732285923708,3.04637,3282.6,3280.9,3.0]
[1732285924037,3.9238813,3282.8,3280.8,0.55]
[1732285924038,0.34272706,3282.5,3280.8,0.55]
[1732285924248,0.34272706,3282.5,3279.4,0.02]
[1732285924249,0.03809006,3282.5,3280.6,3.55]
[1732285924403,0.03809006,3282.5,3280.7,0.03047202]
[1732285924611,6.04709,3281.9,3279.3,3.9238813]
[1732285924808,3.03810046,3281.9,3279.7,3.9238813]
[1732285925035,6.59656,3282.4,3279.8,0.03047743]
[1732285925246,0.55,3282.2,3280.0,3.9238813]
[1732285925410,0.55,3282.2,3280.1,0.03047759]
[1732285925743,3.0,3281.8,3279.7,0.03047987]
[1732285925905,0.54381913,3282.1,3279.6,3.9238813]
[1732285926111,3.04625,3282.8,3278.7,0.01]
[1732285926112,3.04609,3282.9,3280.5,3.9238813]
[1732285926307,3.0,3283.0,3280.6,0.03047129]
[1732285926620,0.77411813,3282.9,3280.9,3.9238813]
[1732285926817,0.8235,3283.3,3281.0,3.03046648]
[1732285927205,3.86922,3283.3,3281.1,0.55]
[1732285927406,3.86922,3283.3,3281.3,0.55]
[1732285927604,3.86922,3283.3,3281.4,0.03046638]
[1732285927860,0.8235,3283.3,3281.4,0.03046638]
[1732285928034,0.68134813,3283.5,3281.4,3.58046638]
[1732285928347,0.71210451,3283.6,3281.4,3.58046638]
[1732285928348,4.97400651,3283.6,3281.4,3.58046638]
[1732285928650,3.04475,3284.4,3281.4,3.58046638]
[1732285928651,3.04461,3284.5,3282.1,3.9238813]
[1732285928954,0.7855,3284.6,3282.2,3.39238813]
[1732285929107,1.216272,3284.4,3282.3,0.03046063]
[1732285929311,1.216272,3284.4,3282.5,3.9238813]
[1732285929312,0.4260902,3284.3,3282.5,3.9238813]
[1732285929503,1.216272,3284.4,3282.6,3.03045655]
[1732285929726,3.04452,3284.6,3282.6,3.03045655]
[1732285929928,3.38290221,3284.6,3282.6,3.03045655]
[1732285930127,3.38290221,3284.6,3282.2,0.39238813]
[1732285930128,3.04472,3284.4,3282.2,3.39238813]
[1732285930335,3.9238813,3284.1,3281.7,3.0]
[1732285930610,3.9238813,3284.1,3280.1,0.01]
[1732285930611,3.0,3283.8,3281.2,3.9238813]
[1732285930815,3.04575,3283.3,3281.3,0.03046748]
[1732285931147,0.304575,3283.2,3281.3,0.03046748]
[1732285931710,3.0,3283.7,3281.7,3.0]
[1732285931909,3.0,3284.0,3282.1,3.0]
[1732285932111,3.0,3284.0,3280.0,0.70869448]
[1732285932112,0.7957,3285.5,3283.0,3.0]
[1732285932311,7.28365962,3286.2,3283.4,3.0]
[1732285932546,3.04427,3284.9,3283.4,3.0]
[1732285932737,3.04427,3284.9,3283.0,0.0304523]
[1732285932950,3.04388,3285.3,3283.0,3.55]